fUST/lending_fUST_20250517
["ID","MTS","AMOUNT","RATE_DAILY","PERIOD"]
[361332638,1747481446764,-872.01,0.0001452,2]
[361332639,1747481446774,-450.0,0.0001452,2]
[361332640,1747481446783,-450.0,0.0001452,2]
[361332641,1747481446792,-1587.9,0.0001452,2]
[361332642,1747481446801,-450.0,0.0001452,2]
[361332643,1747481446810,-2772.47,0.0001452,2]
[361332644,1747481446819,-450.0,0.0001452,2]
[361332645,1747481446828,-450.0,0.0001452,2]
[361332646,1747481446838,-450.0,0.0001452,2]
[361332647,1747481446847,-686.73,0.0001452,2]
[361332648,1747481446856,-157.36,0.0001452,2]
[361332649,1747481446866,-450.0,0.0001452,2]
[361332650,1747481446875,-450.0,0.0001452,2]
[361332651,1747481446884,-450.0,0.0001452,2]
[361332652,1747481446894,-450.0,0.0001452,2]
[361332653,1747481446903,-450.0,0.0001452,2]
[361332654,1747481446912,-450.0,0.0001452,2]
[361332655,1747481446921,-450.0,0.0001452,2]
[361332656,1747481446930,-450.0,0.0001452,2]
[361332657,1747481446939,-1031.95,0.0001452,2]
[361332658,1747481446949,-450.0,0.0001452,2]
[361332659,1747481446958,-450.0,0.0001452,2]
[361332660,1747481446967,-450.0,0.0001452,2]
[361332661,1747481446977,-450.0,0.0001452,2]
[361332662,1747481446992,-450.0,0.0001452,2]
[361332663,1747481447002,-487.68,0.0001452,2]
[361332664,1747481447011,-450.0,0.0001452,2]
[361332665,1747481447020,-636.26,0.0001452,2]
[361332666,1747481447030,-450.0,0.0001452,2]
[361332667,1747481447040,-450.0,0.0001452,2]
[361332668,1747481447049,-450.0,0.0001452,2]
[361332669,1747481447060,-336.72829803,0.0001452,2]
[361332670,1747481447076,-113.27170197,0.0001452,2]
[361332671,1747481447085,-450.0,0.0001452,2]
[361332672,1747481447094,-450.0,0.0001452,2]
[361332673,1747481447103,-450.0,0.0001452,2]
[361332674,1747481447113,-608.36382916,0.0001452,2]
[361332675,1747481447127,-414.85617084,0.0001452,2]
[361332676,1747481447137,-450.0,0.0001452,2]
[361332677,1747481447146,-450.0,0.0001452,2]
[361332678,1747481447156,-561.68,0.0001452,2]
[361332679,1747481447165,-450.0,0.00014657,2]
[361332680,1747481447175,-326.24,0.00014657,2]
[361332681,1747481447185,-450.0,0.00014657,2]
[361332682,1747481447194,-302.20623523,0.00014657,2]
[361332683,1747481447203,-450.0,0.00014657,2]
[361332684,1747481447212,-450.0,0.00014657,2]
[361332685,1747481447222,-450.0,0.00014657,2]
[361332686,1747481447231,-450.0,0.00014657,2]
[361332687,1747481447240,-450.0,0.00014657,2]
[361332688,1747481447249,-450.0,0.00014657,2]
[361332689,1747481447259,-450.0,0.00014657,2]
[361332690,1747481447269,-450.0,0.00014657,2]
[361332691,1747481447279,-553.0,0.00014657,2]
[361332692,1747481447288,-450.0,0.00014657,2]
[361332693,1747481447298,-450.0,0.00014657,2]
[361332694,1747481447308,-450.0,0.00014657,2]
[361332695,1747481447318,-450.0,0.00014657,2]
[361332696,1747481447327,-450.0,0.00014657,2]
[361332697,1747481447336,-450.0,0.00014657,2]
[361332698,1747481447345,-450.0,0.00014657,2]
[361332699,1747481447355,-450.0,0.00014657,2]
[361332700,1747481447364,-872.01,0.00014657,2]
[361332701,1747481447373,-450.0,0.00014657,2]
[361332702,1747481447383,-450.0,0.00014657,2]
[361332703,1747481447393,-1587.9,0.00014657,2]
[361332704,1747481447402,-450.0,0.00014657,2]
[361332705,1747481447412,-2772.47,0.00014657,2]
[361332706,1747481447421,-450.0,0.00014657,2]
[361332707,1747481447431,-450.0,0.00014657,2]
[361332708,1747481447440,-686.73,0.00014657,2]
[361332709,1747481447450,-450.0,0.00014657,2]
[361332710,1747481447460,-450.0,0.00014657,2]
[361332711,1747481447469,-367.62,0.00014657,2]
[361332712,1747481447580,-450.0,0.00014657,2]
[361332713,1747481447591,-450.0,0.00014657,2]
[361332714,1747481447601,-450.0,0.00014657,2]
[361332715,1747481447610,-450.0,0.00014657,2]
[361332716,1747481447620,-450.0,0.00014657,2]
[361332717,1747481447630,-1031.95,0.00014657,2]
[361332718,1747481447639,-450.0,0.00014657,2]
[361332719,1747481447648,-450.0,0.00014657,2]
[361332720,1747481447658,-450.0,0.00014657,2]
[361332721,1747481447667,-450.0,0.00014657,2]
[361332722,1747481447676,-450.0,0.00014657,2]
[361332723,1747481447685,-487.68,0.00014657,2]
[361332724,1747481447694,-537.61,0.00014657,2]
[361332725,1747481447703,-636.26,0.00014657,2]
[361332726,1747481447712,-450.0,0.00014657,2]
[361332727,1747481447721,-450.0,0.00014657,2]
[361332728,1747481447730,-450.0,0.00014657,2]
[361332729,1747481447739,-450.0,0.00014657,2]
[361332730,1747481447748,-450.0,0.00014657,2]
[361332731,1747481447757,-450.0,0.00014657,2]
[361332732,1747481447766,-450.0,0.00014657,2]
[361332733,1747481447780,-1023.22,0.00014657,2]
[361332734,1747481447789,-450.0,0.00014657,2]
[361332735,1747481447798,-450.0,0.00014657,2]
[361332736,1747481447808,-561.68,0.00014657,2]
[361332737,1747481447818,-500.0,0.0001468,2]
[361332738,1747481447828,-450.0,0.00014794,2]
[361332739,1747481447837,-537.2043886,0.00014794,2]
[361332740,1747481447846,-450.0,0.00014794,2]
[361332741,1747481447855,-450.0,0.00014794,2]
[361332742,1747481447864,-450.0,0.00014794,2]
[361332743,1747481447874,-450.0,0.00014794,2]
[361332744,1747481447884,-450.0,0.00014794,2]
[361332745,1747481447894,-450.0,0.00014794,2]
[361332746,1747481447903,-450.0,0.00014794,2]
[361332747,1747481447913,-553.0,0.00014794,2]
[361332748,1747481447922,-450.0,0.00014794,2]
[361332749,1747481447931,-450.0,0.00014794,2]
[361332750,1747481447940,-450.0,0.00014794,2]
[361332751,1747481447949,-450.0,0.00014794,2]
[361332752,1747481447958,-450.0,0.00014794,2]
[361332753,1747481447967,-450.0,0.00014794,2]
[361332754,1747481447976,-450.0,0.00014794,2]
[361332755,1747481447990,-450.0,0.00014794,2]
[361332756,1747481447999,-872.01,0.00014794,2]
[361332757,1747481448009,-450.0,0.00014794,2]
[361332758,1747481448018,-450.0,0.00014794,2]
[361332759,1747481448027,-1587.9,0.00014794,2]
[361332760,1747481448036,-450.0,0.00014794,2]
[361332761,1747481448046,-2772.47,0.00014794,2]
[361332762,1747481448055,-450.0,0.00014794,2]
[361332763,1747481448064,-450.0,0.00014794,2]
[361332764,1747481448073,-686.73,0.00014794,2]
[361332765,1747481448082,-450.0,0.00014794,2]
[361332766,1747481448092,-450.0,0.00014794,2]
[361332767,1747481448101,-450.0,0.00014794,2]
[361332768,1747481448111,-450.0,0.00014794,2]
[361332769,1747481448120,-390.38652677,0.00014794,2]
[361332770,1747481448129,-450.0,0.00014794,2]
[361332771,1747481448139,-450.0,0.00014794,2]
[361332772,1747481448149,-1031.95,0.00014794,2]
[361332773,1747481448159,-450.0,0.00014794,2]
[361332774,1747481448169,-450.0,0.00014794,2]
[361332775,1747481448179,-450.0,0.00014794,2]
[361332776,1747481448190,-450.0,0.00014794,2]
[361332777,1747481448199,-225.77407566,0.00014794,2]
[361332778,1747481448209,-487.68,0.00014794,2]
[361332779,1747481448219,-636.26,0.00014794,2]
[361332780,1747481448228,-450.0,0.00014794,2]
[361332781,1747481448236,-450.0,0.00014794,2]
[361332782,1747481448246,-450.0,0.00014794,2]
[361332783,1747481448255,-450.0,0.00014794,2]
[361332784,1747481448264,-450.0,0.00014794,2]
[361332785,1747481448273,-450.0,0.00014794,2]
[361332786,1747481448282,-450.0,0.00014794,2]
[361332787,1747481448292,-1021.64099372,0.00014794,2]
[361332789,1747481448476,-1521.61157722,0.00013598,2]
[361332790,1747481448486,-5000.0,0.00013697,2]
[361332791,1747481448496,-450.0,0.00013698,2]
[361332792,1747481448512,-207.53,0.00013835,2]
[361332793,1747481448530,-1.57900628,0.00014794,2]
[361332794,1747481448544,-450.0,0.00014794,2]
[361332795,1747481448559,-450.0,0.00014794,2]
[361332796,1747481448574,-561.68,0.00014794,2]
[361332797,1747481448590,-4589.20047954,0.000149,2]
[361332798,1747481448604,-450.0,0.00014931,2]
[361332799,1747481448621,-184.300606,0.00014931,2]
[361332800,1747481448635,-450.0,0.00014931,2]
[361332801,1747481448650,-450.0,0.00014931,2]
[361332803,1747481448663,-450.0,0.00014931,2]
[361332804,1747481448678,-450.0,0.00014931,2]
[361332805,1747481448692,-450.0,0.00014931,2]
[361332806,1747481448703,-553.0,0.00014931,2]
[361332807,1747481448715,-450.0,0.00014931,2]
[361332808,1747481448731,-450.0,0.00014931,2]
[361332809,1747481448746,-450.0,0.00014931,2]
[361332810,1747481448762,-450.0,0.00014931,2]
[361332811,1747481448777,-450.0,0.00014931,2]
[361332812,1747481448791,-450.0,0.00014931,2]
[361332813,1747481448802,-450.0,0.00014931,2]
[361332814,1747481448813,-450.0,0.00014931,2]
[361332815,1747481448830,-872.01,0.00014931,2]
[361332816,1747481448843,-450.0,0.00014931,2]
[361332817,1747481448855,-450.0,0.00014931,2]
[361332818,1747481448868,-1587.9,0.00014931,2]
[361332819,1747481448881,-450.0,0.00014931,2]
[361332820,1747481448892,-2772.47,0.00014931,2]
[361332821,1747481448906,-450.0,0.00014931,2]
[361332822,1747481448918,-450.0,0.00014931,2]
[361332823,1747481448930,-686.73,0.00014931,2]
[361332824,1747481448942,-450.0,0.00014931,2]
[361332825,1747481448955,-450.0,0.00014931,2]
[361332826,1747481448967,-450.0,0.00014931,2]
[361332827,1747481448979,-450.0,0.00014931,2]
[361332828,1747481448994,-450.0,0.00014931,2]
[361332829,1747481449008,-450.0,0.00014931,2]
[361332830,1747481449022,-1031.95,0.00014931,2]
[361332831,1747481449034,-450.0,0.00014931,2]
[361332832,1747481449048,-450.0,0.00014931,2]
[361332833,1747481449059,-450.0,0.00014931,2]
[361332834,1747481449073,-450.0,0.00014931,2]
[361332835,1747481449086,-487.68,0.00014931,2]
[361332836,1747481449098,-636.26,0.00014931,2]
[361332837,1747481449110,-240.36,0.00014931,2]
[361332838,1747481449122,-450.0,0.00014931,2]
[361332839,1747481449134,-450.0,0.00014931,2]
[361332840,1747481449147,-450.0,0.00014931,2]
[361332841,1747481449160,-450.0,0.00014931,2]
[361332842,1747481449172,-450.0,0.00014931,2]
[361332843,1747481449184,-450.0,0.00014931,2]
[361332844,1747481449197,-1023.22,0.00014931,2]
[361332845,1747481449210,-450.0,0.00014931,2]
[361332846,1747481449222,-450.0,0.00014931,2]
[361332847,1747481449234,-561.68,0.00014931,2]
[361332848,1747481449247,-474.0,0.00015,2]
[361332849,1747481449259,-160.0,0.00015,2]
[361332850,1747481449271,-369.60178198,0.00015,2]
[361332851,1747481449283,-1002.21717576,0.00015015,2]
[361332852,1747481449296,-1000.0,0.00015016,2]
[361332853,1747481449306,-1000.0,0.00015021,2]
[361332854,1747481449317,-502.45172187,0.00015027,2]
[361332855,1747481449327,-450.0,0.00015068,2]
[361332856,1747481449337,-273.85492222,0.00015068,2]
[361332857,1747481449346,-450.0,0.00015068,2]
[361332858,1747481449356,-293.78956164,0.00015068,2]
[361332859,1747481449365,-450.0,0.00015068,2]
[361332860,1747481449374,-553.0,0.00015068,2]
[361332861,1747481449383,-450.0,0.00015068,2]
[361332862,1747481449393,-434.38,0.00015068,2]
[361332863,1747481449403,-450.0,0.00015068,2]
[361332864,1747481449413,-450.0,0.00015068,2]
[361332865,1747481449423,-450.0,0.00015068,2]
[361332866,1747481449432,-450.0,0.00015068,2]
[361332867,1747481449442,-450.0,0.00015068,2]
[361332868,1747481449451,-450.0,0.00015068,2]
[361332869,1747481449460,-872.01,0.00015068,2]
[361332870,1747481449469,-450.0,0.00015068,2]
[361332871,1747481449479,-450.0,0.00015068,2]
[361332872,1747481449488,-1587.9,0.00015068,2]
[361332873,1747481449497,-450.0,0.00015068,2]
[361332874,1747481449506,-2772.47,0.00015068,2]
[361332875,1747481449515,-462.9,0.00015068,2]
[361332876,1747481449525,-450.0,0.00015068,2]
[361332877,1747481449536,-686.73,0.00015068,2]
[361332878,1747481449545,-450.0,0.00015068,2]
[361332879,1747481449555,-450.0,0.00015068,2]
[361332880,1747481449566,-450.0,0.00015068,2]
[361332881,1747481449576,-450.0,0.00015068,2]
[361332882,1747481449585,-450.0,0.00015068,2]
[361332883,1747481449594,-450.0,0.00015068,2]
[361332884,1747481449603,-1031.95,0.00015068,2]
[361332885,1747481449612,-450.0,0.00015068,2]
[361332886,1747481449622,-450.0,0.00015068,2]
[361332887,1747481449795,-450.0,0.00015068,2]
[361332888,1747481449892,-450.0,0.00015068,2]
[361332889,1747481449905,-487.68,0.00015068,2]
[361332890,1747481449915,-636.26,0.00015068,2]
[361332891,1747481449924,-450.0,0.00015068,2]
[361332892,1747481449933,-450.0,0.00015068,2]
[361332893,1747481449943,-450.0,0.00015068,2]
[361332894,1747481449952,-450.0,0.00015068,2]
[361332895,1747481449961,-450.0,0.00015068,2]
[361332896,1747481449971,-450.0,0.00015068,2]
[361332897,1747481449980,-1023.22,0.00015068,2]
[361332898,1747481449993,-450.0,0.00015068,2]
[361332899,1747481450003,-450.0,0.00015068,2]
[361332900,1747481450013,-561.68,0.00015068,2]
[361332901,1747481450022,-501.17402631,0.000151,2]
[361332902,1747481450033,-207.4,0.00015155,2]
[361332903,1747481450043,-450.0,0.00015205,2]
[361332904,1747481450052,-450.0,0.00015205,2]
[361332905,1747481450062,-450.0,0.00015205,2]
[361332906,1747481450072,-553.0,0.00015205,2]
[361332907,1747481450082,-450.0,0.00015205,2]
[361332908,1747481450091,-422.66,0.00015205,2]
[361332909,1747481450100,-450.0,0.00015205,2]
[361332910,1747481450109,-450.0,0.00015205,2]
[361332911,1747481450118,-450.0,0.00015205,2]
[361332912,1747481450127,-241.82,0.00015205,2]
[361332913,1747481450136,-872.01,0.00015205,2]
[361332914,1747481450146,-450.0,0.00015205,2]
[361332915,1747481450156,-480.549367,0.00015205,2]
[361332916,1747481450165,-1587.9,0.00015205,2]
[361332917,1747481450174,-450.0,0.00015205,2]
[361332918,1747481450184,-2772.47,0.00015205,2]
[361332919,1747481450193,-450.0,0.00015205,2]
[361332920,1747481450203,-686.73,0.00015205,2]
[361332921,1747481450212,-450.0,0.00015205,2]
[361332922,1747481450221,-450.0,0.00015205,2]
[361332923,1747481450231,-450.0,0.00015205,2]
[361332924,1747481450240,-507.8013578,0.00015205,2]
[361332925,1747481450249,-450.0,0.00015205,2]
[361332926,1747481450258,-450.0,0.00015205,2]
[361332927,1747481450267,-1031.95,0.00015205,2]
[361332928,1747481450276,-450.0,0.00015205,2]
[361332929,1747481450285,-450.0,0.00015205,2]
[361332930,1747481450294,-450.0,0.00015205,2]
[361332931,1747481450303,-450.0,0.00015205,2]
[361332932,1747481450313,-487.68,0.00015205,2]
[361332933,1747481450322,-636.26,0.00015205,2]
[361332934,1747481450331,-450.0,0.00015205,2]
[361332935,1747481450340,-450.0,0.00015205,2]
[361332936,1747481450350,-366.48397577,0.00015205,2]
[361332937,1747481450358,-472.41,0.00015205,2]
[361332938,1747481450368,-450.0,0.00015205,2]
[361332939,1747481450377,-450.0,0.00015205,2]
[361332940,1747481450387,-1023.22,0.00015205,2]
[361332941,1747481450396,-450.0,0.00015205,2]
[361332942,1747481450405,-561.68,0.00015205,2]
[361332943,1747481450415,-587.0,0.00015239,2]
[361332944,1747481450424,-4589.20047954,0.00015279,2]
[361332945,1747481450434,-151.0,0.000153,2]
[361332946,1747481450443,-450.0,0.00015342,2]
[361332947,1747481450451,-450.0,0.00015342,2]
[361332948,1747481450461,-450.0,0.00015342,2]
[361332949,1747481450471,-553.0,0.00015342,2]
[361332950,1747481450480,-450.0,0.00015342,2]
[361332951,1747481450489,-450.0,0.00015342,2]
[361332952,1747481450498,-450.0,0.00015342,2]
[361332953,1747481450508,-872.01,0.00015342,2]
[361332954,1747481450517,-450.0,0.00015342,2]
[361332955,1747481450527,-1587.9,0.00015342,2]
[361332956,1747481450536,-450.0,0.00015342,2]
[361332957,1747481450545,-2772.47,0.00015342,2]
[361332958,1747481450555,-686.73,0.00015342,2]
[361332959,1747481450564,-450.0,0.00015342,2]
[361332960,1747481450574,-450.0,0.00015342,2]
[361332961,1747481450583,-450.0,0.00015342,2]
[361332962,1747481450592,-450.0,0.00015342,2]
[361332963,1747481450601,-450.0,0.00015342,2]
[361332964,1747481450610,-1031.95,0.00015342,2]
[361332965,1747481450620,-450.0,0.00015342,2]
[361332966,1747481450629,-450.0,0.00015342,2]
[361332967,1747481450638,-450.0,0.00015342,2]
[361332968,1747481450647,-450.0,0.00015342,2]
[361332969,1747481450656,-487.68,0.00015342,2]
[361332970,1747481450666,-636.26,0.00015342,2]
[361332971,1747481450675,-450.0,0.00015342,2]
[361332972,1747481450684,-450.0,0.00015342,2]
[361332973,1747481450694,-450.0,0.00015342,2]
[361332974,1747481450704,-233.31,0.00015342,2]
[361332975,1747481450713,-1023.22,0.00015342,2]
[361332976,1747481450723,-450.0,0.00015342,2]
[361332977,1747481450732,-561.68,0.00015342,2]
[361332978,1747481450742,-450.0,0.00015479,2]
[361332979,1747481450752,-450.0,0.00015479,2]
[361332980,1747481450761,-553.0,0.00015479,2]
[361332981,1747481450771,-450.0,0.00015479,2]
[361332982,1747481450780,-450.0,0.00015479,2]
[361332983,1747481450789,-872.01,0.00015479,2]
[361332984,1747481450798,-276.84854579,0.00015479,2]
[361332985,1747481450807,-1587.9,0.00015479,2]
[361332986,1747481450818,-450.0,0.00015479,2]
[361332987,1747481450827,-2772.47,0.00015479,2]
[361332988,1747481450836,-686.73,0.00015479,2]
[361332989,1747481450846,-382.75301612,0.00015479,2]
[361332990,1747481450855,-450.0,0.00015479,2]
[361332991,1747481450865,-450.0,0.00015479,2]
[361332992,1747481450874,-450.0,0.00015479,2]
[361332993,1747481450883,-1031.95,0.00015479,2]
[361332994,1747481450893,-450.0,0.00015479,2]
[361332995,1747481450902,-450.0,0.00015479,2]
[361332996,1747481450911,-450.0,0.00015479,2]
[361332997,1747481450920,-210.6,0.00015479,2]
[361332998,1747481450929,-487.68,0.00015479,2]
[361332999,1747481450939,-636.26,0.00015479,2]
[361333000,1747481450948,-572.57,0.00015479,2]
[361333001,1747481450957,-450.0,0.00015479,2]
[361333002,1747481450966,-450.0,0.00015479,2]
[361333003,1747481450975,-1023.22,0.00015479,2]
[361333004,1747481450986,-450.0,0.00015479,2]
[361333005,1747481450996,-561.68,0.00015479,2]
[361333006,1747481451005,-1500.0,0.00015564,2]
[361333007,1747481451015,-223.35908659,0.00015569,2]
[361333008,1747481451024,-277.38375,0.00015616,2]
[361333009,1747481451033,-553.0,0.00015616,2]
[361333010,1747481451043,-483.44,0.00015616,2]
[361333011,1747481451053,-872.01,0.00015616,2]
[361333012,1747481451062,-1587.9,0.00015616,2]
[361333013,1747481451072,-450.0,0.00015616,2]
[361333014,1747481451082,-2772.47,0.00015616,2]
[361333015,1747481451091,-686.73,0.00015616,2]
[361333016,1747481451100,-537.65,0.00015616,2]
[361333017,1747481451109,-450.0,0.00015616,2]
[361333018,1747481451119,-586.02,0.00015616,2]
[361333019,1747481451129,-1031.95,0.00015616,2]
[361333020,1747481451139,-450.0,0.00015616,2]
[361333021,1747481451149,-450.0,0.00015616,2]
[361333022,1747481451158,-450.0,0.00015616,2]
[361333023,1747481451168,-487.68,0.00015616,2]
[361333024,1747481451177,-636.26,0.00015616,2]
[361333025,1747481451186,-450.0,0.00015616,2]
[361333026,1747481451195,-450.0,0.00015616,2]
[361333027,1747481451204,-1023.22,0.00015616,2]
[361333028,1747481451213,-183.05,0.00015616,2]
[361333029,1747481451222,-561.68,0.00015616,2]
[361333030,1747481451232,-4589.20047954,0.00015659,2]
[361333031,1747481451242,-553.0,0.00015753,2]
[361333032,1747481451251,-872.01,0.00015753,2]
[361333033,1747481451260,-1587.9,0.00015753,2]
[361333034,1747481451269,-163.57376729,0.00015753,2]
[361333035,1747481451279,-2772.47,0.00015753,2]
[361333036,1747481451288,-686.73,0.00015753,2]
[361333037,1747481451297,-450.0,0.00015753,2]
[361333038,1747481451306,-1031.95,0.00015753,2]
[361333039,1747481451316,-450.0,0.00015753,2]
[361333040,1747481451325,-450.0,0.00015753,2]
[361333041,1747481451334,-450.0,0.00015753,2]
[361333042,1747481451344,-487.68,0.00015753,2]
[361333043,1747481451353,-636.26,0.00015753,2]
[361333044,1747481451363,-450.0,0.00015753,2]
[361333045,1747481451373,-406.56,0.00015753,2]
[361333046,1747481451382,-1023.22,0.00015753,2]
[361333047,1747481451391,-561.68,0.00015753,2]
[361333048,1747481451401,-161.93955036,0.00015831,7]
[361333049,1747481451410,-553.0,0.0001589,2]
[361333050,1747481451419,-872.01,0.0001589,2]
[361333051,1747481451429,-1587.9,0.0001589,2]
[361333052,1747481451439,-2772.47,0.0001589,2]
[361333053,1747481451449,-686.73,0.0001589,2]
[361333054,1747481451458,-450.0,0.0001589,2]
[361333055,1747481451467,-1031.95,0.0001589,2]
[361333056,1747481451477,-476.7004655,0.0001589,2]
[361333057,1747481451487,-450.0,0.0001589,2]
[361333058,1747481451496,-245.98,0.0001589,2]
[361333059,1747481451505,-487.68,0.0001589,2]
[361333060,1747481451515,-636.26,0.0001589,2]
[361333061,1747481451524,-450.0,0.0001589,2]
[361333062,1747481451534,-1023.22,0.0001589,2]
[361333063,1747481451543,-561.68,0.0001589,2]
[361333064,1747481451553,-151.0,0.000159,2]
[361333065,1747481451562,-3000.0,0.00016,2]
[361333066,1747481451575,-151.0,0.00016,2]
[361333067,1747481451585,-3000.0,0.0001601,2]
[361333068,1747481451594,-3000.0,0.0001602,2]
[361333069,1747481451604,-553.0,0.00016027,2]
[361333070,1747481451614,-872.01,0.00016027,2]
[361333071,1747481451623,-1587.9,0.00016027,2]
[361333072,1747481451632,-2772.47,0.00016027,2]
[361333073,1747481451645,-686.73,0.00016027,2]
[361333074,1747481451657,-450.0,0.00016027,2]
[361333075,1747481451672,-1031.95,0.00016027,2]
[361333076,1747481451682,-450.0,0.00016027,2]
[361333077,1747481451691,-487.68,0.00016027,2]
[361333078,1747481451700,-636.26,0.00016027,2]
[361333079,1747481451710,-450.0,0.00016027,2]
[361333080,1747481451719,-1023.22,0.00016027,2]
[361333081,1747481451728,-561.68,0.00016027,2]
[361333082,1747481451738,-3000.0,0.0001603,2]
[361333083,1747481451747,-4589.20047954,0.00016038,2]
[361333084,1747481451757,-3000.0,0.0001604,2]
[361333085,1747481451768,-3000.0,0.0001605,2]
[361333086,1747481451778,-3000.0,0.0001606,2]
[361333087,1747481451787,-3000.0,0.0001607,2]
[361333088,1747481451798,-3000.0,0.0001608,2]
[361333089,1747481451807,-3000.0,0.0001609,2]
[361333090,1747481451816,-3000.0,0.000161,2]
[361333091,1747481451826,-3000.0,0.0001611,2]
[361333092,1747481451835,-2000.0,0.00016112,2]
[361333093,1747481451844,-3000.0,0.0001612,2]
[361333094,1747481451854,-3000.0,0.0001613,2]
[361333095,1747481451864,-3000.0,0.0001614,2]
[361333096,1747481451873,-3000.0,0.0001615,2]
[361333097,1747481451883,-3000.0,0.0001616,2]
[361333098,1747481451892,-553.0,0.00016164,2]
[361333099,1747481451902,-872.01,0.00016164,2]
[361333100,1747481451911,-1587.9,0.00016164,2]
[361333101,1747481451920,-2772.47,0.00016164,2]
[361333102,1747481451930,-686.73,0.00016164,2]
[361333103,1747481451939,-450.0,0.00016164,2]
[361333104,1747481451949,-1031.95,0.00016164,2]
[361333105,1747481451957,-450.0,0.00016164,2]
[361333106,1747481451967,-487.68,0.00016164,2]
[361333107,1747481451977,-636.26,0.00016164,2]
[361333108,1747481451989,-386.47,0.00016164,2]
[361333109,1747481451999,-1023.22,0.00016164,2]
[361333110,1747481452009,-561.68,0.00016164,2]
[361333111,1747481452019,-3000.0,0.0001617,2]
[361333112,1747481452028,-3000.0,0.0001618,2]
[361333113,1747481452037,-3000.0,0.0001619,2]
[361333114,1747481452048,-3000.0,0.000162,2]
[361333115,1747481452057,-151.0,0.000162,2]
[361333116,1747481452067,-3000.0,0.0001621,2]
[361333117,1747481452076,-3000.0,0.0001622,2]
[361333118,1747481452085,-3000.0,0.0001623,2]
[361333119,1747481452094,-3000.0,0.0001624,2]
[361333120,1747481452104,-3000.0,0.0001625,2]
[361333121,1747481452114,-3000.0,0.0001626,2]
[361333122,1747481452123,-5212.726654,0.0001627,2]
[361333123,1747481452133,-151.0,0.0001627,2]
[361333124,1747481452142,-151.0,0.000163,2]
[361333125,1747481452151,-553.0,0.00016301,2]
[361333126,1747481452161,-872.01,0.00016301,2]
[361333127,1747481452170,-1587.9,0.00016301,2]
[361333128,1747481452180,-2772.47,0.00016301,2]
[361333129,1747481452189,-686.73,0.00016301,2]
[361333130,1747481452198,-324.73478825,0.00016301,2]
[361333131,1747481452208,-1031.95,0.00016301,2]
[361333132,1747481452218,-450.0,0.00016301,2]
[361333133,1747481452227,-487.68,0.00016301,2]
[361333134,1747481452236,-636.26,0.00016301,2]
[361333135,1747481452246,-1023.22,0.00016301,2]
[361333136,1747481452255,-561.68,0.00016301,2]
[361333137,1747481452265,-183.23,0.0001631,2]
[361333138,1747481452274,-4589.20047954,0.00016417,2]
[361333139,1747481452284,-553.0,0.00016438,2]